bitfinex/quotes_ETHUSD_20250702
["timestamp","ask_amount","ask_price","bid_price","bid_amount"]
[1751435396637,0.01,2445.9,2445.7,1.29181]
[1751435402457,0.01,2445.9,2445.8,0.7534]
[1751435413381,0.01,2445.9,2445.7,0.52571]
[1751435414582,0.7956,2445.8,2445.7,0.02]
[1751435414907,17.22425831,2445.8,2445.7,0.02]
[1751435415086,10.7956,2445.8,2445.7,0.02]
[1751435416074,17.23975831,2445.8,2445.7,0.02]
[1751435422591,10.8111,2445.8,2445.7,0.02]
[1751435422791,10.0,2445.8,2445.7,0.02]
[1751435424709,10.0,2445.8,2445.7,0.224]
[1751435431579,0.01,2445.9,2445.7,0.224]
[1751435432086,0.01,2445.9,2445.8,0.8311]
[1751435440422,0.01,2445.9,2445.8,2.8351]
[1751435440720,0.01,2445.9,2445.8,2.31191]
[1751435449332,0.01,2445.9,2445.8,2.004]
[1751435463063,0.01,2445.9,2445.8,2.024]
[1751435463927,0.01,2445.9,2445.8,0.02]
[1751435464122,0.01,2445.9,2445.8,2.028]
[1751435473574,0.01,2445.9,2445.8,0.02]
[1751435473873,0.01,2445.9,2445.8,2.028]
[1751435475971,0.01,2445.9,2445.8,0.02]
[1751435476177,0.01,2445.9,2445.8,2.025]
[1751435481397,0.01,2445.9,2445.8,2.9119]
[1751435482579,0.01,2445.9,2445.8,2.025]
[1751435484283,6.43865831,2445.9,2445.8,0.02]
[1751435484787,0.01,2445.9,2445.8,0.02]
[1751435489292,0.7629,2445.9,2445.8,0.02]
[1751435489493,10.7629,2445.9,2445.8,0.02]
[1751435489793,12.48205583,2445.9,2445.8,0.02]
[1751435490303,18.48393083,2445.9,2445.8,0.02]
[1751435490863,18.89343083,2445.9,2445.8,0.02]
[1751435494801,23.20443083,2445.9,2445.8,0.02]
[1751435495011,18.89343083,2445.9,2445.8,0.02]
[1751435498908,0.55,2445.7,2445.3,0.02]
[1751435499111,11.325,2445.3,2445.0,0.224]
[1751435499407,17.75365831,2445.2,2445.0,0.224]
[1751435499776,18.16315831,2445.2,2445.0,0.224]
[1751435500076,19.47281414,2445.2,2445.0,0.224]
[1751435500680,18.92281414,2445.2,2445.0,0.02]
[1751435500890,17.20365831,2445.2,2445.1,0.224]
[1751435501087,10.0,2445.2,2445.1,0.224]
[1751435501382,0.7977,2445.5,2445.1,0.224]
[1751435502023,0.7977,2445.5,2445.4,0.204]
[1751435503891,6.42865831,2445.6,2445.4,0.204]
[1751435505523,10.7941,2445.7,2445.4,0.204]
[1751435505687,17.22275831,2445.7,2445.4,0.204]
[1751435506013,17.22275831,2445.7,2445.6,0.204]
[1751435506205,20.15242164,2445.7,2445.6,0.204]
[1751435510919,17.22275831,2445.7,2445.6,0.204]
[1751435513903,10.0,2445.8,2445.6,0.204]
[1751435514924,6.42865831,2445.7,2445.6,0.204]
[1751435515502,7.22835831,2445.7,2445.6,0.204]
[1751435515700,17.22835831,2445.7,2445.6,0.204]
[1751435516018,19.49738164,2445.7,2445.6,0.204]
[1751435519023,10.0,2445.6,2445.1,2.03]
[1751435519190,0.8016,2445.5,2445.4,0.204]
[1751435519389,17.23025831,2445.5,2445.4,0.204]
[1751435521011,17.78025831,2445.5,2445.4,0.204]
[1751435521192,17.78025831,2445.5,2445.1,0.02]
[1751435521193,9.88438992,2445.5,2445.2,0.204]
[1751435521393,16.42865831,2445.3,2445.2,0.204]
[1751435525914,9.88438992,2445.5,2445.2,0.204]
[1751435526120,7.23025831,2445.5,2445.2,0.204]
[1751435527830,6.42865831,2445.3,2445.2,0.204]
[1751435530232,7.24785831,2445.3,2445.2,0.204]
[1751435541166,7.79785831,2445.3,2445.2,0.204]
[1751435541462,11.3548,2445.2,2445.1,0.02]
[1751435543652,10.8048,2445.2,2445.1,0.02]
[1751435543826,8.41344414,2445.3,2445.1,0.224]
[1751435543827,10.0,2445.3,2445.1,0.224]
[1751435544747,6.42865831,2445.2,2445.1,0.224]
[1751435550162,10.01,2445.3,2445.1,0.224]
[1751435552477,11.65486583,2445.3,2445.1,0.224]
[1751435552679,6.42865831,2445.2,2445.1,0.224]
[1751435554273,17.77075831,2445.2,2445.1,0.02]
[1751435560231,18.18025831,2445.2,2445.1,0.02]
[1751435560468,17.77075831,2445.2,2445.1,0.02]
[1751435560654,20.39502072,2445.2,2445.1,0.02]
[1751435564367,6.42865831,2445.2,2445.1,0.02]
[1751435564667,10.01,2445.3,2445.1,0.224]
[1751435569191,6.42865831,2445.2,2445.1,0.224]
[1751435579457,0.01,2445.3,2445.1,0.224]
[1751435580374,0.01,2445.3,2445.2,0.8287]
[1751435583603,0.01,2445.3,2445.1,0.02]
[1751435583604,7.23825831,2445.3,2445.1,0.02]
[1751435583765,0.72382583,2445.2,2445.1,0.02]
[1751435584795,7.23825831,2445.3,2445.1,0.02]
[1751435587161,0.55,2445.2,2445.1,0.02]
[1751435588597,1.3496,2445.2,2445.1,0.02]
[1751435590203,11.3496,2445.2,2445.1,0.02]
[1751435597467,6.43865831,2445.3,2445.1,0.02]
[1751435597468,0.01,2445.3,2445.1,0.02]
[1751435597804,0.01,2445.3,2445.2,0.204]
[1751435611532,24.369,2445.3,2445.2,0.204]
[1751435630112,24.369,2445.3,2445.2,0.9619]
[1751435630422,24.369,2445.3,2445.2,1.70495583]
[1751435631248,22.35024931,2445.3,2445.2,18.13361414]
[1751435631944,22.36024931,2445.3,2445.2,18.13361414]
[1751435633520,22.36024931,2445.3,2445.2,11.70495583]
[1751435633840,22.36024931,2445.3,2445.2,13.71095583]
[1751435640927,22.36024931,2445.3,2445.2,11.70495583]
[1751435641264,22.36024931,2445.3,2445.2,20.31395583]
[1751435642159,22.36024931,2445.3,2445.2,11.70495583]
[1751435642358,22.36024931,2445.3,2445.2,20.31395583]
[1751435646271,22.36024931,2445.3,2445.2,21.21395583]
[1751435647945,22.36024931,2445.3,2445.2,14.61095583]
[1751435648152,22.36024931,2445.3,2445.2,0.204]
[1751435648472,22.36024931,2445.3,2445.2,6.807]
[1751435649462,22.36024931,2445.3,2445.2,0.204]
[1751435658493,23.17624931,2445.3,2445.2,0.204]
[1751435659483,22.36024931,2445.3,2445.2,0.204]
[1751435704823,23.18344931,2445.3,2445.2,0.204]
[1751435708057,22.36024931,2445.3,2445.2,0.204]
[1751435709956,23.13634931,2445.3,2445.2,0.204]
[1751435715662,22.36024931,2445.3,2445.2,0.204]
[1751435724293,22.36024931,2445.3,2445.2,5.50252203]
[1751435724458,16.16006288,2445.3,2445.2,16.25737423]
[1751435724656,0.01,2445.5,2445.3,10.0]
[1751435724850,0.01,2445.5,2445.4,11.0005]
[1751435725049,0.01,2445.5,2445.4,15.50252203]
[1751435725454,0.01,2445.5,2445.4,11.0005]
[1751435730314,0.01,2445.5,2445.4,2.209]
[1751435732904,0.01,2445.5,2445.4,0.204]
[1751435738688,0.01,2445.5,2445.4,1.0099]
[1751435741723,0.01,2445.5,2445.4,0.204]
[1751435745987,0.7798,2445.5,2445.4,0.204]
[1751435746493,1.5015696,2445.5,2445.4,0.204]
[1751435750714,0.7798,2445.5,2445.4,0.204]
[1751435751083,0.01,2445.5,2445.4,0.204]
[1751435760426,0.01,2445.5,2445.4,7.20049602]
[1751435760800,0.01,2445.5,2445.4,0.7726]
[1751435762997,0.01,2445.5,2445.4,17.20049602]
[1751435764239,0.01,2445.5,2445.4,23.81449602]
[1751435770434,0.01,2445.5,2445.4,24.01849602]
[1751435770753,0.02,2446.8,2446.6,0.8008]
[1751435770911,0.0126466,2447.4,2447.0,0.8008]
[1751435771114,0.0126466,2447.4,2447.2,10.0]
[1751435771332,0.0126466,2447.4,2447.3,2.008]
[1751435771531,0.0126466,2447.4,2447.3,8.674]
[1751435771741,0.0126466,2447.4,2447.3,18.674]
[1751435772112,0.0126466,2447.4,2447.3,10.31043417]
[1751435772312,0.0126466,2447.4,2447.3,0.31043417]
[1751435772514,0.0126466,2447.4,2447.3,8.677]
[1751435774352,0.0126466,2447.4,2447.3,8.681]
[1751435775769,0.0126466,2447.4,2446.6,10.13452177]
[1751435776069,0.0126466,2447.4,2446.7,8.682]
[1751435777857,0.00259838,2447.0,2446.7,8.682]
[1751435780765,0.00259838,2447.0,2446.9,0.204]
[1751435783753,0.00259838,2447.0,2446.9,10.9947]
[1751435784453,0.00259838,2447.0,2446.9,0.9947]
[1751435786356,0.00259838,2447.0,2446.9,7.6637]
[1751435786555,0.00259838,2447.0,2446.9,0.9947]
[1751435786757,0.00259838,2447.0,2446.9,9.7077]
[1751435786961,0.00259838,2447.0,2446.9,8.915]
[1751435787138,0.00259838,2447.0,2446.9,8.916]
[1751435790556,0.00259838,2447.0,2446.9,0.204]
[1751435790750,0.72389782,2447.0,2446.9,2.248]
[1751435791574,0.00259838,2447.0,2446.9,2.248]
[1751435791753,0.00259838,2447.0,2446.9,0.204]
[1751435792842,0.77779838,2447.0,2446.9,0.204]
[1751435794372,1.32779838,2447.0,2446.9,0.204]
[1751435794560,0.7794,2446.9,2446.8,0.204]
[1751435795358,1.55538944,2446.9,2446.8,0.204]
[1751435797384,0.00259838,2447.0,2446.8,0.204]
[1751435797585,0.00259838,2447.0,2446.8,6.679]
[1751435797902,0.00259838,2447.0,2446.8,7.38120847]
[1751435798566,0.00259838,2447.0,2446.8,6.679]
[1751435801172,0.00259838,2447.0,2446.9,7.23729602]
[1751435802488,0.00259838,2447.0,2446.9,10.8094]
[1751435807595,0.00259838,2447.0,2446.9,11.0134]
[1751435814803,0.00259838,2447.0,2446.9,11.5134]
[1751435817271,0.00259838,2447.0,2446.9,11.5334]
[1751435821500,0.00259838,2447.0,2446.9,11.0334]
[1751435825806,0.00259838,2447.0,2446.9,11.5334]
[1751435825972,0.00259838,2447.0,2446.9,11.0334]
[1751435827107,0.00259838,2447.0,2446.9,17.46129602]
[1751435827404,0.00259838,2447.0,2446.9,19.50229602]
[1751435833111,0.00259838,2447.0,2446.9,20.00229602]
[1751435833415,0.00259838,2447.0,2446.9,19.50229602]
[1751435833915,0.00259838,2447.0,2446.9,13.0744]
[1751435834119,0.00259838,2447.0,2446.9,18.914]
[1751435834488,0.00259838,2447.0,2446.9,18.913]
[1751435836419,0.00259838,2447.0,2446.9,19.413]
[1751435837898,0.00260316,2447.0,2446.9,19.413]
[1751435840508,0.00260316,2447.0,2446.9,18.913]
[1751435844123,0.00260316,2447.0,2446.9,18.906]
[1751435846527,0.00260316,2447.0,2446.9,0.224]
[1751435846834,0.00260316,2447.0,2446.9,2.252]
[1751435847120,0.00260316,2447.0,2446.9,18.892]
[1751435860413,0.00260316,2447.0,2446.9,25.31989602]
[1751435866142,0.00260316,2447.0,2446.9,18.882]
[1751435868353,0.00260316,2447.0,2446.9,18.881]
[1751435868947,0.00260316,2447.0,2446.9,16.853]
[1751435869153,0.00260316,2447.0,2446.9,18.879]
[1751435870152,0.00260316,2447.0,2446.9,10.224]
[1751435870353,0.00260316,2447.0,2446.9,18.879]
[1751435874248,0.77290316,2447.0,2446.9,10.224]
[1751435874431,0.77290316,2447.0,2446.9,18.876]
[1751435875956,0.00260316,2447.0,2446.9,18.876]
[1751435882860,0.00260316,2447.0,2446.9,19.6857]
[1751435883157,0.01,2447.3,2447.1,0.8097]
[1751435883346,0.01,2447.3,2447.2,23.87079602]
[1751435883548,0.01,2447.3,2447.2,24.07479602]
[1751435888529,0.01,2447.3,2447.2,17.45679602]
[1751435888858,0.01,2447.3,2447.2,18.84]
[1751435889364,0.01,2447.3,2447.2,25.26789602]
[1751435890055,0.01,2447.3,2447.2,16.63189602]
[1751435890262,0.01,2447.3,2447.2,25.26789602]
[1751435890560,0.01,2447.3,2447.2,26.02849602]
[1751435891658,0.01,2447.3,2447.2,26.02949602]
[1751435895943,0.01,2447.3,2447.2,26.02749602]
[1751435902259,0.01,2447.3,2447.2,26.57749602]
[1751435905276,0.01,2447.3,2447.2,17.39249602]
[1751435905451,0.01,2447.3,2447.2,26.02349602]
[1751435906693,0.01,2447.3,2447.2,16.63189602]
[1751435906895,0.01,2447.3,2447.2,25.26289602]
[1751435907199,0.01,2447.3,2447.2,10.204]
[1751435907566,0.01,2447.3,2447.2,18.835]
[1751435907892,0.7963,2447.3,2447.2,18.835]
[1751435910201,0.7963,2447.3,2447.2,0.204]
[1751435910515,0.7963,2447.3,2447.2,6.818]
[1751435913871,0.01,2447.3,2447.2,6.818]
[1751435917706,0.01,2447.3,2447.2,0.204]
[1751435917906,0.01,2447.3,2447.2,8.831]
[1751435919917,0.01,2447.3,2447.2,0.204]
[1751435920124,0.01,2447.3,2447.2,8.831]
[1751435929085,0.01,2447.3,2447.2,18.831]
[1751435944132,0.7907,2450.4,2448.3,5.0921]
[1751435944355,0.7907,2450.4,2447.4,35.450435]
[1751435944356,0.51153,2450.3,2449.3,6.42789602]
[1751435944646,6.42789602,2450.1,2449.1,9.82]
[1751435944852,0.7939,2450.0,2449.1,9.82]
[1751435945025,0.7939,2450.0,2449.2,8.723]
[1751435945228,0.7221796,2449.9,2448.7,7.20699602]
[1751435945428,0.787,2449.8,2448.9,10.0]
[1751435946022,0.787,2449.8,2449.0,6.711]
[1751435946742,0.787,2449.8,2449.0,7.01619634]
[1751435947522,0.787,2449.8,2449.1,8.723]
[1751435947721,0.8158,2449.6,2449.2,8.721]
[1751435949056,0.8158,2449.6,2449.3,8.721]
[1751435949259,0.8258,2449.6,2449.3,8.721]
[1751435954058,0.8258,2449.6,2449.0,0.30519634]
[1751435954263,0.8258,2449.6,2448.9,6.42789602]
[1751435954264,0.8258,2449.6,2449.5,0.204]
[1751435958063,1.5511696,2449.6,2449.5,0.204]
[1751435959363,0.8258,2449.6,2449.5,0.204]
[1751435964179,0.8258,2449.6,2449.4,0.204]
[1751435966370,10.8258,2449.6,2449.4,0.204]
[1751435966571,0.7811,2449.5,2449.4,0.204]
[1751435966738,1.3311,2449.5,2449.4,0.204]
[1751435966942,1.3311,2449.5,2449.2,0.204]
[1751435966943,0.7811,2449.3,2449.2,0.204]
[1751435968971,1.3311,2449.3,2449.2,0.204]
[1751435969172,0.55,2449.2,2448.9,0.204]
[1751435976579,0.7811,2449.3,2448.7,2.053]
[1751435976887,0.7811,2449.3,2449.1,0.204]
[1751435977077,1.07811,2449.2,2449.1,0.204]
[1751435984584,1.08811,2449.2,2449.1,0.204]
[1751435995902,1.63811,2449.2,2449.1,0.204]
[1751435997408,0.55,2449.1,2448.5,0.02]
[1751435997607,10.8004,2449.0,2448.8,0.204]
[1751435997782,12.9399296,2448.9,2448.5,0.02]
[1751435997984,12.9399296,2448.9,2448.6,0.204]
[1751436002583,1.3671,2448.7,2448.5,0.02]
[1751436002782,0.8171,2448.7,2448.5,0.224]
[1751436003007,1.13671,2448.6,2448.5,0.224]
[1751436003622,1.68671,2448.6,2448.5,0.224]
[1751436004021,1.68671,2448.6,2448.5,0.02]
[1751436006485,1.89271,2449.2,2448.5,7.27379602]
[1751436006685,0.01,2449.2,2448.5,7.27379602]
[1751436007011,0.01,2449.2,2448.6,0.7839]
[1751436007322,0.01,2449.2,2448.7,2.046]
[1751436009088,0.01,2448.9,2448.7,2.046]
[1751436009291,0.01,2448.9,2448.8,0.7907]
[1751436016620,0.01,2448.9,2448.8,0.9947]
[1751436017627,0.01,2448.9,2448.8,3.0397]
[1751436033749,0.01,2448.9,2448.8,0.204]
[1751436036255,1.375,2448.9,2448.8,0.204]
[1751436036425,0.825,2448.9,2448.7,0.204]
[1751436036626,1.3809,2448.8,2448.7,0.204]
[1751436036931,10.55,2448.7,2448.6,0.204]
[1751436037136,0.55,2448.7,2448.6,0.204]
[1751436045180,11.13909,2448.8,2448.6,0.204]
[1751436045580,11.13909,2448.8,2448.7,0.204]
[1751436055094,5.461875,2448.9,2448.7,0.204]
[1751436065608,0.01,2448.9,2448.7,0.204]
[1751436068604,0.7648,2448.8,2448.7,0.204]
[1751436068809,11.3148,2448.8,2448.5,0.02]
[1751436069108,0.55,2448.7,2448.5,0.224]
[1751436069315,1.13148,2448.6,2448.5,0.224]
[1751436069811,0.55,2448.7,2448.5,0.224]
[1751436071107,0.7648,2448.8,2448.5,0.224]
[1751436071414,10.01,2448.9,2448.5,0.224]
[1751436071582,10.01,2448.9,2448.7,0.204]
[1751436072018,0.56,2448.9,2448.7,0.204]
[1751436081499,6.98789602,2448.9,2448.7,0.204]
[1751436081731,0.7959,2448.6,2448.5,0.224]
[1751436081942,10.7959,2448.6,2448.5,0.224]
[1751436082235,0.7959,2448.6,2448.5,0.224]
[1751436088839,5.461875,2448.9,2448.5,0.02]
[1751436089042,5.461875,2448.9,2448.6,0.7758]
[1751436089342,0.01,2448.9,2448.6,0.7758]
[1751436092852,0.55,2448.7,2448.5,0.02]
[1751436093025,0.7744296,2448.6,2448.5,0.02]
[1751436093551,0.55,2448.7,2448.5,0.02]
[1751436094753,0.9593,2448.7,2448.5,0.02]
[1751436094920,0.55,2448.7,2448.5,0.02]
[1751436097334,10.55,2448.7,2448.5,0.02]
[1751436098836,10.55,2448.7,2448.5,0.224]
[1751436099154,1.7744296,2448.6,2448.5,0.224]
[1751436102665,0.7664,2448.8,2448.5,0.224]
[1751436102666,0.55,2448.8,2448.5,0.224]
[1751436108573,0.01,2448.9,2448.7,0.204]
[1751436109071,10.01,2448.9,2448.7,0.204]
[1751436116166,16.43789602,2448.9,2448.7,0.204]
[1751436116383,2.1889771,2448.8,2448.7,0.204]
[1751436121312,10.01,2448.9,2448.7,0.204]
[1751436121914,10.01,2448.9,2448.8,0.7593]
[1751436123413,10.01,2448.9,2448.7,0.204]
[1751436125486,16.658,2448.9,2448.7,0.204]
[1751436127020,16.97789602,2448.8,2448.5,0.02]
[1751436127222,6.652,2448.7,2448.5,0.224]
[1751436127520,17.25979602,2448.6,2448.5,0.224]
[1751436128632,16.42789602,2448.6,2448.5,0.224]
[1751436128799,12.73100731,2448.6,2448.5,0.224]
[1751436133038,19.38100731,2448.6,2448.5,0.224]
[1751436135655,19.79030731,2448.6,2448.5,0.224]
[1751436135823,19.38100731,2448.6,2448.5,0.224]
[1751436139862,12.73100731,2448.6,2448.5,0.224]
[1751436140058,10.0,2448.6,2448.5,0.224]
[1751436140361,16.647,2448.6,2448.5,0.224]
[1751436141663,0.01,2448.9,2448.5,0.998]
[1751436142174,10.01,2448.9,2448.8,0.204]
[1751436146765,0.01,2448.9,2448.8,0.9992]
[1751436170116,0.01,2448.9,2448.8,0.204]
[1751436171501,0.99055765,2448.9,2448.8,0.204]
[1751436172180,0.01,2448.9,2448.8,0.204]
[1751436175320,10.7637,2448.9,2448.8,0.204]
[1751436175524,12.5378596,2448.9,2448.8,0.204]
[1751436179508,0.01,2448.9,2448.8,0.204]
[1751436181738,0.01,2448.9,2448.8,0.9879]
[1751436189976,0.01,2448.9,2448.8,0.204]
[1751436202565,0.01,2448.9,2448.8,0.9795]
[1751436203481,0.01,2448.9,2448.8,0.204]
[1751436210272,0.8254,2448.9,2448.8,0.204]
[1751436212374,0.01,2448.9,2448.8,0.204]
[1751436213695,2.97214411,2448.9,2448.8,0.204]
[1751436214008,4.07544028,2448.9,2448.8,0.204]
[1751436218728,10.5033363,2448.9,2448.8,0.204]
[1751436218894,9.27864513,2448.9,2448.8,0.204]
[1751436220034,2.85074911,2448.9,2448.8,0.204]
[1751436220402,0.98975294,2448.9,2448.8,0.204]
[1751436220707,0.01,2448.9,2448.8,0.204]
[1751436226079,0.01,2448.9,2448.8,0.9859]
[1751436232670,0.01,2448.9,2448.8,0.204]
[1751436236190,0.98951588,2448.9,2448.8,0.204]
[1751436236491,0.01,2448.9,2448.8,0.204]
[1751436236694,0.98951588,2448.9,2448.8,0.204]
[1751436236869,0.01,2448.9,2448.8,0.204]
[1751436237076,0.98951588,2448.9,2448.8,0.204]
[1751436237370,0.01,2448.9,2448.8,0.204]
[1751436237574,0.98951588,2448.9,2448.8,0.204]
[1751436237763,0.01,2448.9,2448.8,0.204]
[1751436238061,0.98951588,2448.9,2448.8,0.204]
[1751436238260,0.01,2448.9,2448.8,0.204]
[1751436238460,0.98951588,2448.9,2448.8,0.204]
[1751436243266,1.85369656,2448.9,2448.8,0.204]
[1751436245809,9.50598743,2448.9,2448.8,0.204]
[1751436245976,9.44470675,2448.9,2448.8,0.204]
[1751436250337,8.2203119,2448.9,2448.8,0.204]
[1751436257514,9.85283837,2448.9,2448.8,0.204]
[1751436259033,9.04993837,2448.9,2448.8,0.204]
[1751436259228,10.27993118,2448.9,2448.8,0.204]
[1751436263952,10.27993118,2448.9,2448.5,0.02]
[1751436263953,0.7515,2448.7,2448.5,0.02]
[1751436264252,0.7515,2448.7,2448.6,0.204]
[1751436264253,12.93519419,2448.7,2448.6,0.204]
[1751436264414,12.28159477,2448.7,2448.6,0.204]
[1751436264618,15.08692,2448.7,2448.6,0.204]
[1751436265017,17.5357097,2448.7,2448.6,0.204]
[1751436265447,17.24609602,2448.6,2448.5,0.224]
[1751436265623,20.67543184,2448.6,2448.5,0.224]
[1751436266116,18.22619079,2448.6,2448.5,0.224]
[1751436266316,22.83263267,2448.6,2448.5,0.224]
[1751436270547,22.83115568,2448.6,2448.5,0.224]
[1751436272571,20.3828654,2448.6,2448.5,0.224]
[1751436273237,22.83115568,2448.6,2448.5,0.224]
[1751436276067,19.5646654,2448.6,2448.5,0.224]
[1751436278776,22.01295568,2448.6,2448.5,0.224]
[1751436279962,19.5646654,2448.6,2448.5,0.224]
[1751436280552,22.01295568,2448.6,2448.5,0.224]
[1751436281279,19.5646654,2448.6,2448.5,0.224]
[1751436281472,22.01295568,2448.6,2448.5,0.224]
[1751436286897,15.58505966,2448.6,2448.5,0.224]
[1751436287067,12.60989799,2448.6,2448.5,0.224]
[1751436287396,10.97861778,2448.6,2448.5,0.224]
[1751436287601,17.4065138,2448.6,2448.5,0.224]
[1751436287806,19.85480408,2448.6,2448.5,0.224]
[1751436288176,17.4065138,2448.6,2448.5,0.224]
[1751436288361,21.15912006,2448.6,2448.5,0.224]
[1751436288785,18.71082978,2448.6,2448.5,0.224]
[1751436289016,21.15912006,2448.6,2448.5,0.224]
[1751436289194,18.71082978,2448.6,2448.5,0.224]
[1751436289391,21.15912006,2448.6,2448.5,0.224]
[1751436289602,21.16912006,2448.6,2448.5,0.224]
[1751436290414,18.72082978,2448.6,2448.5,0.224]
[1751436291505,18.72082978,2448.6,2448.5,0.204]
[1751436291903,19.49082978,2448.6,2448.5,0.204]
[1751436292507,13.06293376,2448.6,2448.5,0.204]
[1751436293017,19.69293376,2448.6,2448.5,0.204]
[1751436299623,22.9579867,2448.6,2448.5,0.204]
[1751436301742,22.9579867,2448.6,2448.5,0.224]
[1751436302239,29.38588272,2448.6,2448.5,0.224]
[1751436302537,29.38588272,2448.6,2448.5,0.204]
[1751436306833,10.98861778,2448.6,2448.5,0.204]
[1751436307308,0.98861778,2448.6,2448.5,0.204]
[1751436308108,7.4165138,2448.6,2448.5,0.204]
[1751436310141,0.98861778,2448.6,2448.5,0.204]
[1751436310343,2.62242346,2448.6,2448.5,1.0164]
[1751436310920,0.98861778,2448.6,2448.5,1.0164]
[1751436311246,2.21356518,2448.6,2448.5,1.0164]
[1751436311853,0.98861778,2448.6,2448.5,1.0164]
[1751436313349,0.98861778,2448.6,2448.5,1.0364]
[1751436314854,0.01,2448.6,2448.5,1.0364]
[1751436315015,0.98861778,2448.6,2448.5,1.0364]
[1751436315217,0.01,2448.6,2448.5,1.0364]
[1751436317027,0.01,2448.6,2448.5,3.0584]
[1751436334280,0.01,2448.6,2448.5,9.6844]
[1751436336042,0.01,2448.6,2448.5,19.6844]
[1751436338541,0.01,2448.6,2448.5,23.76853314]
[1751436339040,0.01,2448.6,2448.5,19.6844]
[1751436339441,0.01,2448.6,2448.5,30.74642916]
[1751436347779,0.01,2448.6,2448.5,20.2344]
[1751436347981,0.01,2448.6,2448.5,24.31353314]
[1751436348181,0.01,2448.6,2448.5,30.74142916]
[1751436348368,0.01,2448.6,2448.5,15.67053314]
[1751436348562,0.01,2448.6,2448.5,24.31353314]
[1751436349478,0.01,2448.6,2448.5,29.06353314]
[1751436355365,0.01,2448.9,2448.8,4.85353279]
[1751436355560,0.01,2448.9,2448.8,30.05442881]
[1751436355792,0.01,2449.2,2449.1,4.84863257]
[1751436356096,0.01,2449.2,2449.1,19.91952859]
[1751436356305,0.97677184,2450.1,2449.1,19.91952859]
[1751436356306,0.98677184,2450.2,2449.6,0.8095]
[1751436356468,0.01,2450.6,2450.2,10.0]
[1751436356669,0.01,2450.6,2450.4,0.774]
[1751436356892,0.01,2450.6,2450.5,6.69]
[1751436358401,0.01,2450.6,2450.5,17.24]
[1751436360376,0.01,2450.6,2450.5,16.69]
[1751436361106,0.01,2450.6,2450.5,10.0]
[1751436361318,0.01,2450.6,2450.5,8.709]
[1751436362025,0.01,2450.6,2449.9,10.0]
[1751436362321,0.7991,2450.5,2450.0,0.7554]
[1751436362496,0.01,2450.6,2450.1,8.714]
[1751436362924,0.01,2450.6,2450.2,0.7974]
[1751436363129,0.01,2450.6,2450.3,6.697]
[1751436363342,0.01,2450.6,2450.4,0.55]
[1751436363622,0.01,2450.6,2450.5,6.699]
[1751436364210,0.01,2450.6,2450.5,17.249]
[1751436364496,0.01,2450.6,2450.5,18.0269]
[1751436365337,0.01,2450.6,2450.5,22.10769983]
[1751436365491,0.01,2450.6,2450.5,28.53559585]
[1751436365932,0.01,2450.6,2450.5,22.10769983]
[1751436366435,0.01,2450.6,2450.5,22.31169983]
[1751436367732,0.2185979,2451.2,2450.5,22.31169983]
[1751436367933,0.2185979,2451.2,2451.1,17.94289602]
[1751436368097,0.2185979,2451.2,2451.1,30.73869692]
[1751436369026,0.2185979,2451.2,2451.1,26.65889602]
[1751436369235,0.2185979,2451.2,2451.1,11.515]
[1751436369534,0.2185979,2451.2,2451.1,20.233]
[1751436369837,0.2185979,2451.2,2451.1,24.3128009]
[1751436369999,0.2185979,2451.2,2451.1,24.3148009]
[1751436370402,0.2185979,2451.2,2451.1,24.62223531]
[1751436370602,0.2185979,2451.2,2451.1,11.82143441]
[1751436370821,0.2185979,2451.2,2451.1,20.54043441]
[1751436371437,0.2185979,2451.2,2451.1,11.82143441]
[1751436371732,0.2185979,2451.2,2451.1,19.27763441]
[1751436372503,0.2185979,2451.2,2451.1,19.82763441]
[1751436374519,0.2185979,2451.2,2451.1,10.2032]
[1751436374717,0.2185979,2451.2,2451.1,18.9722]
[1751436375038,0.2185979,2451.2,2451.1,18.9692]
[1751436376393,0.2185979,2451.2,2451.1,18.9682]
[1751436377746,0.2185979,2451.2,2451.1,19.820191]
[1751436378152,0.2185979,2451.2,2451.1,11.055191]
[1751436378349,0.2185979,2451.2,2451.1,19.817191]
[1751436379185,0.2185979,2451.2,2451.1,10.2032]
[1751436379386,0.2185979,2451.2,2451.1,18.9702]
[1751436382099,0.9985979,2451.2,2451.1,18.9672]
[1751436382696,0.2185979,2451.2,2451.1,18.9672]
[1751436388992,0.2185979,2451.2,2451.1,18.9652]
[1751436389412,0.2185979,2451.2,2451.1,10.2032]
[1751436389583,0.2185979,2451.2,2451.1,18.9662]
[1751436390178,0.2185979,2451.2,2451.1,19.4672]
[1751436390585,0.2185979,2451.2,2451.1,10.7042]
[1751436390799,0.2185979,2451.2,2451.1,19.4652]
[1751436391014,0.9832979,2451.2,2451.1,19.4652]
[1751436391373,0.9832979,2451.2,2451.1,12.7692]
[1751436391669,0.9832979,2451.2,2451.1,19.4652]
[1751436392082,0.9832979,2451.2,2451.1,12.7692]
[1751436392408,0.9832979,2451.2,2451.1,19.4652]